Cogmind - Beta 10.1 @@@ ROGUE MODE // 2020.09.24 @ 20:28:37 Player: HOTSOUP Result: Destroyed by DAS Turret with DAS Cannon Performance ------------- Evolutions (1) 500 Regions Visited (5) 1000 Robots Destroyed (15) 75 Value Destroyed (475) 475 Prototype IDs (4) 80 Alien Tech Used (0) 0 Bonus (225) 225 TOTAL SCORE: 2355 Bonus ------- Aligned with FarCom 300 Friendly Fire -75 Cogmind --------- Core Integrity 0/400 Matter 283/300 Energy 8/125 System Corruption 8% Temperature Cool (0) Movement Core (50) Location -9/Exiles Parts ------- > --- POWER (1) -------- Light Ion Engine > --- PROPULSION (2) --- (None) > --- UTILITY (4) ------ Visual Processing Unit Enhanced Optical Array > --- WEAPON (2) ------- (None) > --- INVENTORY (4) ---- EM Shotgun Improved EM Pulse Cannon Peak State ------------ > --- POWER ------------ Ion Engine > --- PROPULSION ------- Improved Flight Unit Xenon Bombardment Thruster > --- UTILITY ---------- Visual Processing Unit Enhanced Optical Array Cloak of Protection Core Shielding > --- WEAPON ----------- Improved EM Pulse Cannon Latent Energy Streamer > --- INVENTORY -------- Light Ion Engine Fission Core EM Shotgun Improved EM Pulse Cannon [Rating: 38] Favorites ----------- Power Ion Engine Engine Ion Engine Propulsion Improved Flight Unit Flight Unit Improved Flight Unit Utility Core Shielding Device Weight Redist. System Processor Visual Processing Unit Hackware Hacking Suite Protection Core Shielding Weapon Improved EM Pulse Cannon Energy Gun Spread Laser Energy Cannon Improved EM Pulse Cannon Ballistic Gun Assault Rifle Special Melee Weapon Datajack Build | -11 -10 -10 -9 -9 -9 ------- Run | Scr Mat Min Mat Min Exi Slots Evolved 2 | . . . 2 . . Power . | . . . . . . Propulsion . | . . . . . . Utility 2 | . . . 2 . . Weapon . | . . . . . . Parts Attached 28 | 1 12 . 5 5 5 Power 3 | . 1 . . 1 1 Engine 3 | . 1 . . 1 1 Core . | . . . . . . Reactor . | . . . . . . Propulsion 3 | . . . 1 1 1 Treads . | . . . . . . Leg . | . . . . . . Wheel . | . . . . . . Hover . | . . . . . . Flight 3 | . . . 1 1 1 Utility 9 | . 4 . 3 1 1 Device 5 | . 4 . . . 1 Storage . | . . . . . . Processor 2 | . . . 1 1 . Hackware 1 | . . . 1 . . Protection 1 | . . . 1 . . Artifact . | . . . . . . Weapon 13 | 1 7 . 1 2 2 Energy Gun 7 | . 7 . . . . Energy Cannon 4 | . . . . 2 2 Ballistic Gun 1 | 1 . . . . . Ballistic Cannon . | . . . . . . Launcher . | . . . . . . Special Weapon . | . . . . . . Impact Weapon . | . . . . . . Slashing Weapon . | . . . . . . Piercing Weapon . | . . . . . . Special Melee Weapon 1 | . . . 1 . . Unidentified Prototypes 3 | . . . 1 . 2 Parts Lost 18 | . 4 2 3 1 8 Power 2 | . . . 1 . 1 Propulsion 3 | . . . . . 3 Utility 5 | . . 1 1 1 2 Weapon 8 | . 4 1 1 . 2 Highest Loss Streak 8 | . 2 1 3 1 8 Average Slot Usage (%) 58 | . 30 42 45 69 92 Engine 7 | . 4 14 7 8 10 Flight 10 | . . . 1 20 21 Device 7 | . 11 28 8 . 8 Processor 10 | . . . . 20 22 Hackware 1 | . . . 10 . . Protection 7 | . . . 11 11 10 Energy Gun 4 | . 14 . . . . Energy Cannon 6 | . . . . 8 18 Naked Turns 7 | . 7 . . . . Heaviest Build 31 | 2 9 9 7 13 31 Greatest Support 14 | 3 9 9 9 13 14 Greatest Overweight (x) 2 | . 2 . . 1 2 Average Overweight (x) . | . . . . . . Largest Inventory Capacity 4 | 4 4 4 4 4 4 Average Capacity 4 | 4 4 4 4 4 4 Most Carried 4 | . 4 3 2 3 4 Average Carried 2 | . 1 3 . 2 3 Final Capacity 4 | 4 4 4 4 4 4 Final Carried 3 | . 3 3 . 3 2 Class Distribution -------------------- 100% | Mutant Dominant Class ---------------- Mutant | -10/Materials Mutant | -10/Mines Mutant | -9/Materials Mutant | -9/Mines Mutant | -9/Exiles Resources | -11 -10 -10 -9 -9 -9 ----------- Run | Scr Mat Min Mat Min Exi Matter Collected 390 | 151 159 . . 80 . Remotely . | . . . . . . Salvage Created 553 | . 347 . 25 181 . Parts 33 | . 20 . 1 12 . Haulers Intercepted 1 | . 1 . . . . Recyclers Shooed . | . . . . . . Parts Field Recycled . | . . . . . . Retrieved Matter . | . . . . . . Parts Self-Destructed . | . . . . . . Prevented . | . . . . . . Kills | -11 -10 -10 -9 -9 -9 ------- Run | Scr Mat Min Mat Min Exi Combat Hostiles Destroyed 12 | . 8 . 1 3 . Guns 8 | . 8 . . . . Cannons 3 | . . . . 3 . AOE 1 | . . . 1 . . Classes Destroyed 5 | . 3 . . 2 . Tunneler 1 | . . . . 1 . Hauler 1 | . 1 . . . . Operator 1 | . 1 . . . . Grunt 11 | . 8 . 1 2 . Brawler 1 | . . . . 1 . Best Kill Streak 3 | . 3 . 1 2 . Combat Bots Only 3 | . 3 . 1 2 . Max Kills in Single Turn 2 | . 2 . 1 1 . Gunslinging . | . . . . . . Exploded 1 | . . . 1 . . Melee . | . . . . . . Uniques/NPCs Destroyed . | . . . . . . Combat | -11 -10 -10 -9 -9 -9 -------- Run | Scr Mat Min Mat Min Exi Damage Taken 1872 | . 457 110 202 69 1034 Core 674 | . 159 88 107 48 272 Absorbed by Shields . | . . . . . . Core Remaining (%) 50 | 100 . 1 . . . Volleys Fired 60 | . 47 . . 11 2 Largest 2 | . 2 . . 1 1 Hottest 130 | . 130 . . 69 60 Shots Fired 62 | . 49 . . 11 2 Gun 49 | . 49 . . . . Cannon 13 | . . . . 11 2 Launcher . | . . . . . . Special . | . . . . . . Kinetic . | . . . . . . Thermal 35 | . 35 . . . . Explosive . | . . . . . . Electromagnetic 27 | . 14 . . 11 2 Robot Hit Streak 11 | . 11 . . 4 1 Robot Miss Streak 7 | . 7 . . 2 2 Penetration Max . | . . . . . . Secondary Targets . | . . . . . . Shots Hit Robots 53 | . 40 . 6 6 1 Core Hits 47 | . 38 1 1 4 3 Critical Hits . | . . . . . . Critical Kills . | . . . . . . Critical Parts Destroyed . | . . . . . . Melee Attacks 7 | . . . 7 . . Impact . | . . . . . . Slashing . | . . . . . . Piercing . | . . . . . . Sneak Attacks 4 | . . . 4 . . Combat Hostiles . | . . . . . . Follow-up Attacks . | . . . . . . Damage Inflicted 1046 | . 490 21 247 174 114 Guns 490 | . 490 . . . . Cannons 181 | . . . . 174 7 Explosions 354 | . . . 247 . 107 Melee . | . . . . . . Ramming 21 | . . 21 . . . Kinetic . | . . . . . . Thermal 394 | . 394 . . . . Explosive 247 | . . . 247 . . Electromagnetic 384 | . 96 . . 174 114 Impact . | . . . . . . Slashing . | . . . . . . Piercing . | . . . . . . Highest Corruption 8 | . . 2 . . 8 Average Corruption 4 | . . 2 . . 6 Corruption Purged . | . . . . . . Effects 2 | . . 1 . . 1 Message Errors 1 | . . 1 . . . Matter Fused 1 | . . . . . 1 Overload Shots . | . . . . . . Overflow Damage 62 | . . . 62 . . Projectiles . | . . . . . . Explosions 62 | . . . 62 . . Melee . | . . . . . . Knockbacks . | . . . . . . Impact . | . . . . . . Kinetic . | . . . . . . Secondary . | . . . . . . Self-Inflicted Damage 10 | . . 10 . . . Shots . | . . . . . . Rammed 2 | . . 2 . . . Targets Rammed 2 | . . 2 . . . Kicked . | . . . . . . Crushed . | . . . . . . Highest Temperature 94 | . 74 . . 94 20 Average Temperature 22 | . 18 . . 31 10 Received Heat Transfer 415 | . 246 . 108 21 40 Siege Activations . | . . . . . . Robots Corrupted . | . . . . . . Combat Hostiles . | . . . . . . Parts Fried . | . . . . . . Impact Corruptions . | . . . . . . Robots Melted . | . . . . . . Combat Hostiles . | . . . . . . Parts Melted . | . . . . . . Heat Transferred 480 | . 480 . . . . Parts Sabotaged . | . . . . . . Parts Stolen . | . . . . . . Parts Stripped . | . . . . . . Power Chain Reactions . | . . . . . . Missiles Intercepted . | . . . . . . Latent Energy Used 400 | . . . . . 400 LE Corruption 6 | . . . . . 6 Alert | -11 -10 -10 -9 -9 -9 ------- Run | Scr Mat Min Mat Min Exi Peak Influence 180 | . 180 45 131 126 . Initial 51 | . . 45 9 51 . Average 67 | . 78 33 49 69 . Maximum Alert Level . | . . . . . . Low Security (%) 100 | 100 100 100 100 100 . Level 1 . | . . . . . . Level 2 . | . . . . . . Level 3 . | . . . . . . Level 4 . | . . . . . . Level 5 . | . . . . . . High Security . | . . . . . . Max Security . | . . . . . . Squads Dispatched 10 | . 4 . 4 2 . Investigation 8 | . 3 . 3 2 . Extermination . | . . . . . . Reinforcement 2 | . 1 . 1 . . Assault . | . . . . . . Garrison . | . . . . . . Intercept . | . . . . . . Construction Impeded . | . . . . . . Haulers Reinforced . | . . . . . . Stealth | -11 -10 -10 -9 -9 -9 --------- Run | Scr Mat Min Mat Min Exi Distress Signals 5 | . 3 . 2 . . Communications Jammed . | . . . . . . Distress Signals . | . . . . . . Times Spotted 95 | . 23 3 21 17 31 Peak Tracking Total 18 | . 4 3 10 7 18 Tactical Retreats 11 | . 2 1 3 2 3 Traps | -11 -10 -10 -9 -9 -9 ------- Run | Scr Mat Min Mat Min Exi Traps Triggered 2 | . 1 . 1 . . Indirectly . | . . . . . . Trap Hack Attempts . | . . . . . . Triggered . | . . . . . . Disarmed . | . . . . . . Reprogrammed . | . . . . . . Reused . | . . . . . . Traps Extracted . | . . . . . . Installed . | . . . . . . Triggered . | . . . . . . Machines | -11 -10 -10 -9 -9 -9 ---------- Run | Scr Mat Min Mat Min Exi Machines Disabled 6 | . 1 . 1 2 2 Max in Single Turn 1 | . 1 . 1 1 1 Machines Sabotaged . | . . . . . . Garrisons Compromised . | . . . . . . Overloaded Fab Kills . | . . . . . . Fab Network Shutdowns . | . . . . . . Hacking | -11 -10 -10 -9 -9 -9 --------- Run | Scr Mat Min Mat Min Exi Machines Accessed 15 | . 6 . 6 2 1 Terminals 11 | . 5 . 5 1 . Fabricators . | . . . . . . Repair Stations . | . . . . . . Recycling Units 1 | . 1 . . . . Scanalyzers 1 | . . . 1 . . Garrison Access . | . . . . . . Total Hacks 40 | . 20 . 16 3 1 Successful 26 | . 10 . 13 2 1 Failed 14 | . 10 . 3 1 . Catastrophic 1 | . 1 . . . . Database Lockouts . | . . . . . . Manual 40 | . 20 . 16 3 1 Terminals 35 | . 19 . 14 2 . Fabricators . | . . . . . . Repair Stations . | . . . . . . Recycling Units 1 | . 1 . . . . Scanalyzers 2 | . . . 2 . . Garrison Access . | . . . . . . Terminal Hacks 4 | . 1 . 1 1 1 Record 1 | . . . . . 1 Prototype ID Bank 1 | . . . 1 . . Open Door 1 | . . . . 1 . Terminal Index 1 | . 1 . . . . Fabricator Hacks . | . . . . . . Repair Station Hacks . | . . . . . . Recycling Unit Hacks . | . . . . . . Scanalyzer . | . . . . . . Garrison Access Hacks . | . . . . . . Unauthorized Hacks 22 | . 9 . 12 1 . Terminals 20 | . 8 . 11 1 . Track 7 | . 3 . 3 1 . Botnet 8 | . 4 . 4 . . Detonate 1 | . . . 1 . . Disrupt 2 | . 1 . 1 . . Operators 1 | . . . 1 . . Sabotage 1 | . . . 1 . . Fabricators . | . . . . . . Repair Stations . | . . . . . . Recycling Units 1 | . 1 . . . . Recyclers 1 | . 1 . . . . Scanalyzers 1 | . . . 1 . . Extract 1 | . . . 1 . . Garrison Access . | . . . . . . Data Cores Recovered . | . . . . . . Used . | . . . . . . Hacking Detections 7 | . 5 . 1 1 . Full Trace Events 6 | . 4 . 1 1 . Feedback Events . | . . . . . . Feedback Blocked . | . . . . . . Robot Schematics Acquired . | . . . . . . Robots Built . | . . . . . . Matter . | . . . . . . Time . | . . . . . . Total Robot Build Rating . | . . . . . . Part Schematics Acquired 10 | . . . 10 . . Parts Built . | . . . . . . Matter . | . . . . . . Time . | . . . . . . Total Part Build Rating . | . . . . . . Parts Repaired . | . . . . . . Time . | . . . . . . Parts Recycled . | . . . . . . Recycled Matter . | . . . . . . Retrieved Matter . | . . . . . . Retrieved Components . | . . . . . . Parts Scanalyzed . | . . . . . . Part Schematics Acquired . | . . . . . . Parts Damaged . | . . . . . . Bothacking | -11 -10 -10 -9 -9 -9 ------------ Run | Scr Mat Min Mat Min Exi Used RIF Installer . | . . . . . . Robots Hacked 2 | . . . 2 . . Non-combat 2 | . . . 2 . . Combat . | . . . . . . Robot Hacks Applied 2 | . . . 2 . . no_distress 2 | . . . 2 . . Relay Couplers Released . | . . . . . . Robots Rewired . | . . . . . . Allies Hacked . | . . . . . . Hacks Repelled . | . . . . . . Allies | -11 -10 -10 -9 -9 -9 -------- Run | Scr Mat Min Mat Min Exi Total Allies . | . . . . . . Largest Group . | . . . . . . Highest-Rated Group . | . . . . . . Highest-Rated Ally . | . . . . . . Total Orders . | . . . . . . Ally Attacks . | . . . . . . Total Damage . | . . . . . . Kills . | . . . . . . Allies Corrupted . | . . . . . . Allies Melted . | . . . . . . Intel | -11 -10 -10 -9 -9 -9 ------- Run | Scr Mat Min Mat Min Exi Robot Analysis Total . | . . . . . . Derelict Logs Recovered 1 | . . . . 1 . Drone Launches . | . . . . . . Drone Recoveries . | . . . . . . Exploration | -11 -10 -10 -9 -9 -9 ------------- Run | Scr Mat Min Mat Min Exi Turns Passed 2007 | 20 640 46 283 503 515 Spaces Moved 1846 | 32 553 88 349 388 436 Core 986 | 32 553 88 311 . 2 Treads . | . . . . . . Legs . | . . . . . . Wheels . | . . . . . . Hover . | . . . . . . Flight 860 | . . . 38 388 434 Fastest Speed 34 | 50 50 50 35 34 34 Average Speed 50 | 50 52 50 48 35 64 Slowest Speed 184 | 50 150 50 50 120 184 Overloaded Moves . | . . . . . . Propulsion Burnouts . | . . . . . . Robots Hopped 8 | . . . 1 2 5 Cave-ins Triggered . | . . . . . . Exploration Rate (%) 44 | 3 58 38 31 58 80 Regions Visited 5 Branch Regions 3 Pre-discovered Areas . | . . . . . . Known Exits Taken . | . . . . . . Unknown Exits Taken 5 | 1 1 1 1 1 . Scrap Searched 2 | . . 1 . 1 . Spaces Dug . | . . . . . . Terrain Destroyed 37 | . . . 19 . 18 Melee . | . . . . . . Projectile . | . . . . . . AOE 37 | . . . 19 . 18 Terrain Rammed . | . . . . . . Walls Destroyed . | . . . . . . Machines Disabled . | . . . . . . Actions | -11 -10 -10 -9 -9 -9 --------- Run | Scr Mat Min Mat Min Exi Total 2828 | 35 851 89 453 737 663 Wait 878 | 3 227 . 94 332 222 Move 1826 | 31 552 87 346 383 427 Hop 7 | . . . 1 2 4 Pick Up 12 | . 8 . . 3 1 Fast Attach 15 | 1 4 . 2 4 4 Attach 13 | . 8 . 3 1 1 Detach 5 | . 4 . . 1 . Swap . | . . . . . . Drop 3 | . 1 . . . 2 Fire 60 | . 47 . . 11 2 Melee 7 | . . . 7 . . Ram 2 | . . 2 . . . Kick . | . . . . . . Crush . | . . . . . . Escape Stasis . | . . . . . . Rewire . | . . . . . . Trap . | . . . . . . Miscellaneous . | . . . . . . Route ------- -11/Scrapyard -10/Materials -10/Mines -9/Materials -9/Mines (discovered 2 exits: [*Mat] / *Exi) -9/Exiles (discovered 1 exit: [*Min]) History --------- Turn | Location | Event 3 | -11/Scrapyard | Discovered new exit (range 16) 21 | -11/Scrapyard | Entered Materials 313 | -10/Materials | Build established: Mutant 408 | -10/Materials | Core integrity fell below 50% 605 | -10/Materials | Discovered new exit (range 9) 661 | -10/Materials | Entered Mines 668 | -10/Mines | Met a Derelict bent on vengeance 684 | -10/Mines | Core integrity fell below 20% 703 | -10/Mines | Discovered new exit (range 8) 707 | -10/Mines | Entered Materials 707 | -9/Materials | Evolved 2 slots: Utility x2 958 | -9/Materials | Lost 3 parts (1p1u1w) 982 | -9/Materials | Discovered new exit (range 13) 990 | -9/Materials | Entered Mines 1000 | -9/Mines | Learned Materials stockpile data 1058 | -9/Mines | Met a Derelict shopkeep closing up shop 1124 | -9/Mines | Discovered new exit (range 14) 1202 | -9/Mines | Deemed a non-threat by the Exiles lab entrance 1203 | -9/Mines | Discovered new exit (range 5) 1493 | -9/Mines | Entered Exiles 1498 | -9/Exiles | Discovered new exit (range 17) 1503 | -9/Exiles | Met 8R-AWN 1508 | -9/Exiles | Met EX-HEX 1521 | -9/Exiles | Met EX-BIN 1530 | -9/Exiles | Met EX-DEC 1583 | -9/Exiles | Aligned with FarCom system 1583 | -9/Exiles | Given EX-Vault access code 1594 | -9/Exiles | Opened EX-Vault 1595 | -9/Exiles | Found Prototype Device 1595 | -9/Exiles | Identified Cloak of Protection 1600 | -9/Exiles | Found Prototype Energy Cannon 1600 | -9/Exiles | Identified Latent Energy Streamer 1655 | -9/Exiles | Warned to stay clear of 0b10 Research branches 1964 | -9/Exiles | Attacked by the Exiles 1993 | -9/Exiles | Core integrity fell below 50% 2005 | -9/Exiles | Core integrity fell below 20% 2008 | -9/Exiles | Destroyed by DAS Turret with DAS Cannon Last Messages --------------- 01966_ EX-DEC deploys DAS Turret. 01967_ Knocked back. 01969_ Imp. EM Pulse Cannon destroyed. 01970_ System corrupted: Matter fused (-7). 01971_ Knocked back. 01974_ EX-BIN: "I just want to science!" 01974_ Machine disabled. 01979_ Ion Engine destroyed. 01983_ Cloak of Protection destroyed. 01983_ Machine disabled. 01990_ Xenon Bombardment Thruster destroyed. 01991_ Latent Energy Streamer destroyed. 01991_ Machine disabled. 01992_ Dropped Rigged Fission Core. 01997_ Core Shielding destroyed. 01997_ Machine disabled. 02002_ 5L-KAT destroyed. 02004_ Acquired Mak. Flight Unit. 02006_ Mak. Flight Unit destroyed. 02006_ Imp. Flight Unit destroyed. Map ----- +----------------------------------------------------+ | ??#### " " " " | | ?????### " | | ???????### | | ?????????## | | ??????????## | | ???????????##" | | ????????????#""" """""" | | ???????????##" ######""" | | ???????????#"" ""##????#####""" | | ??????????## """##?????????##""" | | ?????????## """##???????????#"""" | | ????????## ""#???????????##"" | | ????????# ###?####?????#"""" | | ????????# ##aaa####""" | | ????????# t """" | | ????????# | | ????????# | | ????????## ; | | ?????????## ; " "" | | ??????????###"" " "## ##""" " " " | | ????????????#"" ""#### ######""" "" | | ????????????#" """"##??#??#????###"""" | | ????????????#""" """#?????????????##### | | ????????????## ""##?????????????????? | | ?????????????#"" """##??????????????????? | | ?????????????##""" @ ##???????????????????? | | ??????????????##"""" ##????????????????????? | | ???????????????### a #?????????????????????? | | ?????????????????##### a##?????????????????????? | | ?????????????????????##zaa#??????????????????????? | | ??????????????????????# a#??????????????????????? | | ??????????????????????# a #??????????????????????? | | ??????????????????????# = #??????????????????????? | | ??????????????????????#za #??????????????????????? | | ??????????????????????# #??????????????????????? | | ??????????????????????# #??????????????????????? | | ??????????????????????# #??????????????????????? | | ??????????????????????# z#??????????????????????? | | ?????????????" ??????# #??????????????????????? | | ???????????###"""###### ########???????????????? | | ??????????"""" """""" """"""#??"""#?????????? | | ??????""""""" c "#"" ""#?????????? | | ???? c " ""#?????????? | | ???? " " "#?????????? | | ???? * " """#?????????? | | ???? "" #"" ""#?????????? | | ??????" """"" " """" """#?""""#?????????? | | ??????????"###"""########"""######????#??????????? | | ????????????"" ???????" "????????????????????? | | ????????????"""????????"" """???????????????????? | +----------------------------------------------------+ Best States ------------- Heat Dissipation 35 Energy Generation 10 Energy Capacity 250 Matter Stores 300 Matter Capacity 300 Sight Range 22 Terrain Scan Density 10 Cloak Strength 5 Additional Mass Support 6 Core Shielding 20 Evasion (%) 63 Offensive Hacking 10 Item Schematics ----------------- Sml. Laser | -9/Materials | Extracted Med. Armor Plating | -9/Materials | Extracted Com. Wheel | -9/Materials | Extracted Lrg. Storage Unit | -9/Materials | Extracted Mni. Grenade Launcher | -9/Materials | Extracted Lgt. Cannon | -9/Materials | Extracted Beam Rifle | -9/Materials | Extracted EM Pulse Gun | -9/Materials | Extracted Disposable Heat Sink | -9/Materials | Extracted Lgt. Treads | -9/Materials | Extracted Robot Schematics ------------------ None Fabricated ------------ Nothing Alien Tech Used ----------------- None Achievements -------------- None Challenges ------------ None Game ------ Seed ImpulseBeamMachine Manual? 0 Play Time 00:35:08 Cumulative 56.3 hours Start 2020.09.24 @ 19:54:03 End 2020.09.24 @ 20:28:37 Sessions 1 Manual Loads 0 Difficulty Rogue Special Mode None Game No. 69 Rogue 46 Adventurer 22 Explorer 1 Win Type - Total 1 Types 1/0/0/0/0/0/0/0/0 Lore% 33 Gallery% 41 Achievement% 33 Wizard Run 0 Options --------- ASCII 0 Keyboard 0 Movement Numpad Keybinds 0 Fullscreen 1 Font 14/SmallcapsGlow Map View 84x54 Tactical HUD 1 Map Filters NONE Filters NONE Steam 1 RUN: 99493d2b-9bdd-4136-886d-82cccb99dcb6